[Event "AUT Bundesliga 2021-22"]
[Site "Graz"]
[Date "2022.04.23"]
[Round "11.27"]
[White "Heberla, Bartlomiej"]
[Black "Schreiner, Peter"]
[Result "1-0"]
[ECO "A10"]
[WhiteElo "2570"]
[BlackElo "2435"]
[Annotator "TA"]
[PlyCount "117"]
[EventDate "2021.01.17"]
[EventType "team-tourn"]
[EventCountry "AUT"]
[SourceTitle "playchess.com"]
[Source "ChessBase"]
[SourceQuality "1"]
[TimeControl "40/5400+30:1800+30"]

{[%evp 22,117,0,0,0,-41,23,17,16,20,14,12,43,31,27,36,26,31,56,56,53,74,76,18,68,70,69,69,76,77,78,0,0,0,0,0,0,0,0,0,0,-65,41,42,46,40,62,52,50,49,110,79,79,72,72,72,72,72,72,72,72,72,72,72,72,60,71,60,64,24,161,161,161,161,161,119,241,373,282,272,29951,29951,29984,29985,29989,29990,29990,29975,29974,0,29987,29986,29993,29994,29995,29995,29995,29996]} 1. c4 {[%emt 0:00:09]} g6 {[%emt 0:01:15]} 2. Nc3 {[%emt 0:01:25]} c5 {[%emt 0:00:28]} 3. e3 {[%emt 0:01:18]} Bg7 {[%emt 0:03:27]} 4. d4 {[%emt 0:01:20]} Nf6 {[%emt 0:00:19]} 5. Nf3 {[%emt 0:05:52]} O-O {[%emt 0:00:20]} 6. Be2 {[%emt 0:00:10]} d5 {[%emt 0:01:44]} 7. O-O {[%emt 0:00:03]} cxd4 {[%emt 0:02:37]} 8. exd4 {[%emt 0:00:02]} Nc6 {[%emt 0:02:14]} 9. Re1 {[%emt 0:01:52]} Bg4 {[%emt 0:04:42]} 10. cxd5 {[%emt 0:00:29]} Nxd5 {[%emt 0:01:54]} 11. h3 {[%emt 0:00:09]} Bxf3 {[%emt 0:03:46]} 12. Bxf3 {[%emt 0:00:02]} e6 {[%emt 0:02:16] D94: Grünfeld: 4 Nf3 Bg7 5 e3.} 13. Be3 $5 {[%emt 0:03:02][%mdl 4] [#] An interesting side line.} Nxc3 $146 {[%emt 0:22:34]} (13... Nxe3 $15 14. fxe3 Qe7) ({Predecessor:} 13... Nxe3 14. fxe3 Rc8 15. Rc1 Bh6 16. Kh1 Ne7 17. Qd2 b6 18. Rcd1 Nf5 19. Qf2 Bg5 20. g3 {½-½ (63) Tomici,S (2118)-Miroiu,G (2299) Arad 2011}) 14. bxc3 $11 {[%emt 0:00:16]} Rc8 {[%emt 0:00:59] The position is equal.} 15. Rc1 {[%emt 0:04:45]} Qa5 {[%emt 0:03:23]} 16. Qb3 {[%emt 0:02:37]} b5 {[%emt 0:01:31]} 17. Bf4 {[%emt 0:11:13]} a6 {[%emt 0:06:45]} 18. d5 {[%emt 0:09:46]} exd5 {[%emt 0:02:00]} 19. Bxd5 {[%emt 0:00:05] Threatens to win with Bd6.} Qb6 {[%emt 0:02:07]} 20. Qd1 {[%emt 0:17:25] And now Bd6 would win.} Nd8 {[%emt 0:15:06]} 21. Be3 {[%emt 0:22:11]} Qa5 {[%emt 0:06:00]} 22. Bd4 {[%emt 0:02:15]} (22. Qg4 $16 Nc6 {[#]} 23. Bxf7+ $1 {[%mdl 512]} Kxf7 24. Bc5) 22... Nc6 {[%emt 0:06:58]} ({Black should try} 22... Bxd4 $11 23. cxd4 Rxc1 24. Qxc1 Ne6) 23. Bc5 $14 {[%emt 0:03:00]} Rfd8 {[%emt 0:03:20] [#]} 24. Bxf7+ $1 {[%emt 0:05:13] A strong pair of Bishops.} Kh8 {[%emt 0:00:15]} 25. Qb3 {[%emt 0:00:13]} Ne5 {[%emt 0:01:24]} 26. Be7 {[%emt 0:03:11]} (26. Bd4 $16 Qc7 27. Be6) 26... Nd3 $11 {[%emt 0:02:25][%csl LRc1,LRc3,LRe1]} 27. Bxd8 {[%emt 0:00:02]} Rxd8 {[%emt 0:00:15]} 28. Red1 {[%emt 0:00:45] Strongly threatening Rb1.} Nxc1 {[%emt 0:00:35]} 29. Rxc1 {[%emt 0:00:02]} Qb6 {[%emt 0:02:34]} 30. Re1 {[%emt 0:01:31]} Qf6 {[%emt 0:00:34]} 31. Re3 {[%emt 0:00:54]} (31. Re8+ $11 Rxe8 32. Bxe8) 31... Rf8 {[%emt 0:00:14]} (31... Rd2 $1 $15 32. Rf3 (32. Re8+ $2 Bf8 $19) 32... Qe5) 32. Rf3 $36 {[%emt 0:00:09][%mdl 2048] White fights for an advantage. Active counter play!} Qe7 {[%emt 0:00:42] White must now prevent ...Qe1+.} 33. g3 {[%emt 0:00:56]} (33. g4 {feels hotter.} Be5 34. Kg2 Kg7 35. Bd5) 33... a5 {[%emt 0:00:47]} 34. Kg2 {[%emt 0:01:54]} a4 {[%emt 0:00:25]} 35. Qd5 {[%emt 0:00:01]} Qe5 {[%emt 0:01:05]} ({Better is} 35... Bf6 $14) 36. Qd7 {[%emt 0:00:16]} Qc5 {[%emt 0:00:34]} 37. Bd5 {[%emt 0:02:46]} Rxf3 {[%emt 0:00:17]} 38. Bxf3 {[%emt 0:00:09]} Bxc3 {[%emt 0:00:54]} 39. Bd5 {[%emt 0:01:13]} Qf8 {[%emt 0:00:31]} 40. Qxb5 {[%emt 0:00:00]} a3 {[%emt 0:00:00]} 41. Qb6 {[%emt 0:02:04]} Be5 {[%emt 0:07:50]} 42. Qe6 {[%emt 0:00:41]} Bd4 {[%emt 0:01:51]} 43. f4 {[%emt 0:00:03]} Bf6 {[%emt 0:06:29]} 44. h4 {[%emt 0:00:12]} Kg7 {[%emt 0:00:57]} 45. g4 {[%emt 0:13:43][%cal Bg3g4,Bg4g5][%mdl 32]} Bb2 {[%emt 0:13:07]} (45... Bxh4 $11 {and Black stays safe.} 46. g5 h6) 46. g5 $18 {[%emt 0:00:37][%cal Oh4h5] Threatening mate with h5!} Kh8 {[%emt 0:01:06]} 47. Kg3 {[%emt 0:02:38] Kg4 is the strong threat.} Bc3 {[%emt 0:01:44]} 48. Kg4 {[%emt 0:01:50] h5 would kill now.} Bg7 {[%emt 0:01:05]} (48... Bb4 $16 49. Qe5+ Qg7) 49. h5 {[%emt 0:06:39]} gxh5+ {[%emt 0:00:09]} 50. Kxh5 {[%emt 0:00:01] White wants to mate with f5.} Qb8 $2 {[%emt 0:00:53]} (50... Bh6 $18 51. Kg4 (51. gxh6 Qf5+ 52. Qxf5 $11) (51. Qxh6 Qxh6+ 52. Kxh6 $11) 51... Bg7) 51. Kg4 {[%emt 0:01:08]} (51. f5 Qh2+ 52. Kg4 h5+ 53. gxh6 Qg1+ 54. Kf3 Qf1+ 55. Kg4 Qg1+ 56. Kh5 Qd1+ 57. Kg6 Qg1+ 58. Kf7 (58. Kh5 Qd1+ 59. Kg6 Qg1+ 60. Kh5 $16) 58... Qa7+ 59. Qe7 (59. Kg6 Qg1+ 60. Kh5 Qd1+ 61. Kg6 Qg1+ $16) 59... Qxe7+ 60. Kxe7 Bxh6 $16) 51... Qf8 {[%emt 0:00:55]} 52. f5 {[%emt 0:01:45][%cal Bf4f5,Bf5f6][%mdl 32]} Bb2 {[%emt 0:00:13]} 53. f6 {[%emt 0:00:53]} Bc3 {[%emt 0:00:39]} 54. Kh5 {[%emt 0:01:23]} Qb8 {[%emt 0:00:31]} 55. Kg4 $2 {[%emt 0:00:26]} (55. Qe7 {mates} Qh2+ 56. Kg4 Qg1+ 57. Kh3 Qf1+ 58. Kg3 Be1+ 59. Kg4 Qg1+ 60. Kf5) 55... Bd2 $2 {[%emt 0:00:42][%mdl 8192]} (55... Qf8 $11 56. Qe7 Bb4 57. Qd7 Bd2 58. Be4 Qg8 59. Qxd2 Qe6+ 60. Kf4 Qb6) 56. Qe4 {[%emt 0:02:08] White mates.} Bc3 {[%emt 0:00:30]} 57. Qe7 {[%emt 0:00:56][%csl Gf6][%cal Re7g7]} h5+ {[%emt 0:00:31]} 58. Kf5 {[%emt 0:00:29][%csl Gf6][%cal Re7g7]} Qb1+ {[%emt 0:00:29]} 59. Be4 {[%emt 0:00:23] Weighted Error Value: White=0.20 (precise) /Black=0.37} 1-0

[Event "AUT Bundesliga 2021-22"]
[Site "Graz"]
[Date "2022.04.23"]
[Round "11.28"]
[White "Diermair, Andreas"]
[Black "Martinovic, Sasa"]
[Result "1/2-1/2"]
[ECO "D37"]
[WhiteElo "2469"]
[BlackElo "2554"]
[Annotator "TA"]
[PlyCount "19"]
[EventDate "2021.01.17"]
[EventType "team-tourn"]
[EventCountry "AUT"]
[SourceTitle "playchess.com"]
[Source "ChessBase"]
[SourceQuality "1"]
[TimeControl "40/5400+30:1800+30"]

{[%evp 9,19,16,12,17,31,33,14,0,28,0,17,0]} 1. Nf3 {[%emt 0:00:03]} d5 {[%emt 0:00:04]} 2. d4 {[%emt 0:00:08]} Nf6 {[%emt 0:00:05]} 3. c4 {[%emt 0:00:05]} e6 {[%emt 0:00:03]} 4. Nc3 {[%emt 0:00:07]} a6 {[%emt 0:00:09]} 5. c5 {[%emt 0:00:50]} Nc6 {[%emt 0:00:10]} 6. Bf4 {[%emt 0:00:50] D37: Queen's Gambit Declined: 5 Bf4.} Nh5 {[%emt 0:00:07]} 7. Bd2 {[%emt 0:04:30]} Nf6 {[%emt 0:00:09] [#]} 8. Bf4 $146 {[%emt 0:02:49]} ({Predecessor:} 8. h3 Ne4 9. Bf4 Nxc3 10. bxc3 b6 11. cxb6 cxb6 12. e3 Bd6 13. Bd3 Bxf4 14. exf4 Qc7 15. g3 Bd7 16. O-O Ne7 {1-0 (44) Korobov,A (2690)-Kuzubov,Y (2624) Riga 2021}) 8... Nh5 {[%emt 0:00:04]} 9. Bd2 {[%emt 0:00:07]} Nf6 {[%emt 0:00:18]} 10. Bf4 {[%emt 0:02:27] Not much happened in this game.  Weighted Error Value: White=0.09 (flawless) /Black=0.03 (flawless)} 1/2-1/2

[Event "AUT Bundesliga 2021-22"]
[Site "Graz"]
[Date "2022.04.23"]
[Round "11.29"]
[White "Saric, Ante"]
[Black "Sebenik, Matej"]
[Result "1/2-1/2"]
[ECO "D10"]
[WhiteElo "2514"]
[BlackElo "2510"]
[Annotator "TA"]
[PlyCount "72"]
[EventDate "2021.01.17"]
[EventType "team-tourn"]
[EventCountry "AUT"]
[SourceTitle "playchess.com"]
[Source "ChessBase"]
[SourceQuality "1"]
[TimeControl "40/5400+30:1800+30"]

{[%evp 22,72,12,9,20,18,17,8,10,10,18,21,20,0,0,0,0,0,0,0,0,0,0,0,0,-7,0,0,0,0,0,-27,-28,-21,-15,-181,-25,-63,0,0,0,0,0,0,0,0,0,0,0,0,0,0,0]} 1. d4 {[%emt 0:00:04]} d5 {[%emt 0:00:16]} 2. c4 {[%emt 0:00:15]} c6 {[%emt 0:00:28]} 3. cxd5 {[%emt 0:01:10]} cxd5 {[%emt 0:00:05]} 4. Nf3 {[%emt 0:00:04]} Nf6 {[%emt 0:00:21]} 5. Nc3 {[%emt 0:00:06]} Nc6 {[%emt 0:00:05]} 6. Bf4 {[%emt 0:00:04]} a6 {[%emt 0:00:48]} 7. e3 {[%emt 0:00:45]} Bg4 {[%emt 0:03:08]} 8. Be2 {[%emt 0:01:25]} Bxf3 {[%emt 0:00:09]} 9. Bxf3 {[%emt 0:00:06]} e6 {[%emt 0:00:03]} 10. O-O {[%emt 0:04:00]} Bd6 {[%emt 0:00:23]} 11. Bxd6 {[%emt 0:02:00]} Qxd6 {[%emt 0:00:05]} 12. Rc1 {[%emt 0:00:05]} O-O {[%emt 0:00:31] D13: Slav Defence: Exchange variation without ...Bf5.} 13. Na4 {[%emt 0:01:19] [#]} Rab8 $146 {[%emt 0:06:35]} ({Predecessor:} 13... b5 14. Nc5 Rfc8 15. Be2 e5 16. dxe5 Qxe5 17. a4 Qxb2 18. axb5 axb5 19. Rb1 Qa3 {0-1 (45) Hess,R (2591)-Abdusattorov,N (2627) Chess.com INT 2020}) 14. Nc5 {[%emt 0:16:01]} Rfc8 {[%emt 0:05:26]} 15. Be2 {[%emt 0:06:20]} Qe7 {[%emt 0:28:22]} 16. Qb3 {[%emt 0:06:06][%cal Oc5a6]} g6 {[%emt 0:02:25]} 17. Nxa6 {[%emt 0:11:38]} Nxd4 {[%emt 0:09:51]} 18. Rxc8+ {[%emt 0:06:55]} Rxc8 {[%emt 0:00:05]} 19. exd4 {[%emt 0:00:03] [#] Threatens to win with Nc5.} bxa6 {[%emt 0:00:05]} 20. Bxa6 {[%emt 0:00:12]} Ra8 {[%emt 0:00:06]} 21. Bb5 {[%emt 0:10:53]} Qa7 {[%emt 0:01:17][%csl LRa2,LRd4]} 22. a4 {[%emt 0:00:33]} Qxd4 {[%emt 0:00:54]} 23. Rd1 {[%emt 0:06:05]} Qe5 {[%emt 0:04:36]} 24. Qc2 {[%emt 0:03:08]} Ne4 {[%emt 0:07:44]} 25. Bd3 {[%emt 0:07:51]} Rb8 {[%emt 0:09:51]} 26. b3 {[%emt 0:11:32]} Nc3 {[%emt 0:03:09]} 27. Rc1 {[%emt 0:01:59]} Rc8 {[%emt 0:07:38][%cal Oc3e2] White must now prevent ...Ne2+!} 28. Kh1 $2 {[%emt 0:00:30] [#]} (28. Qd2 $11 {and White stays safe.}) 28... Kg7 $2 {[%emt 0:01:06]} (28... Qd4 $1 $19 {And now ...Rc5 would win.} 29. Rf1 e5) 29. h3 {[%emt 0:01:27]} Qf4 {[%emt 0:03:49]} ({Black should play} 29... Qd4 $15 30. Bf1 Qb4) 30. a5 {[%emt 0:01:41] The position is equal.} Nd1 {[%emt 0:02:19] Against Qb2+} 31. Qxc8 {[%emt 0:00:30]} Nxf2+ {[%emt 0:00:02]} 32. Kg1 {[%emt 0:00:06]} Nxh3+ {[%emt 0:03:25]} 33. gxh3 {[%emt 0:00:12]} Qg3+ {[%emt 0:00:04]} 34. Kh1 {[%emt 0:01:07] Bf1 is the strong threat.} Qf3+ {[%emt 0:00:21]} 35. Kh2 {[%emt 0:00:34]} Qf2+ {[%emt 0:00:03]} 36. Kh1 {[%emt 0:00:06] Hoping for Bf1.} Qf3+ {[%emt 0:00:02] Weighted Error Value: White=0.19 (very precise) /Black=0.12 (very precise)} 1/2-1/2

[Event "AUT Bundesliga 2021-22"]
[Site "Graz"]
[Date "2022.04.23"]
[Round "11.30"]
[White "Janzelj, Tim"]
[Black "Rogic, Davor"]
[Result "1-0"]
[ECO "D43"]
[WhiteElo "2463"]
[BlackElo "2446"]
[Annotator "TA"]
[PlyCount "83"]
[EventDate "2021.01.17"]
[EventType "team-tourn"]
[EventCountry "AUT"]
[SourceTitle "playchess.com"]
[Source "ChessBase"]
[SourceQuality "1"]
[TimeControl "40/5400+30:1800+30"]

{[%evp 16,83,52,45,56,45,97,91,84,95,117,108,138,133,134,109,132,132,139,143,144,109,103,75,76,29,26,35,47,-5,-20,-372,-364,-351,0,0,0,0,0,0,0,0,452,425,413,382,2118,2143,1860,1768,1506,1482,1327,1273,2583,1109,2083,1861,1217,1071,29974,29975,29970,29953,10718,0,29958,6187,1586,1586]} 1. d4 {[%emt 0:00:04]} d5 {[%emt 0:00:25]} 2. c4 {[%emt 0:00:07]} e6 {[%emt 0:00:17]} 3. Nc3 {[%emt 0:00:08]} Nf6 {[%emt 0:00:28]} 4. Nf3 {[%emt 0:00:13]} c6 {[%emt 0:00:54]} 5. cxd5 {[%emt 0:06:18]} cxd5 {[%emt 0:00:55]} 6. Bf4 {[%emt 0:00:58]} Nc6 {[%emt 0:00:48]} 7. e3 {[%emt 0:00:47]} Nh5 {[%emt 0:03:21]} 8. Bg5 {[%emt 0:05:24]} Qb6 {[%emt 0:01:35]} 9. Bb5 {[%emt 0:10:29]} h6 {[%emt 0:07:05] D13: Slav Defence: Exchange variation without ...Bf5.} 10. Bh4 {[%emt 0:00:11]} g5 {[%emt 0:01:58] [#]} (10... Nf6 $14) 11. Ne5 $1 $16 {[%emt 0:01:12]} Nf6 {[%emt 0:03:41] White is better.} 12. Bg3 {[%emt 0:01:05]} Bg7 {[%emt 0:01:24]} 13. O-O {[%emt 0:05:29] [#] 0x0.00299f40aea5dp-1022s more active pieces.} Bd7 $146 {[%emt 0:09:46]} ({Predecessor:} 13... O-O 14. Bd3 Nxe5 15. Bxe5 Bd7 16. f4 Nh7 17. Bxg7 Kxg7 18. Bxh7 Qxb2 19. Qc2 Qxc2 20. Bxc2 {1-0 (43) Schmidt,P (2390)-Riedel,W (2320) Bayern 2001}) 14. Nxd7 {[%emt 0:01:40]} Nxd7 {[%emt 0:04:24]} 15. f4 {[%emt 0:03:26]} a6 {[%emt 0:05:54]} 16. Bxc6 {[%emt 0:24:07]} bxc6 {[%emt 0:05:29]} 17. Na4 {[%emt 0:04:01]} Qb5 {[%emt 0:01:10]} 18. fxg5 {[%emt 0:01:49]} hxg5 {[%emt 0:01:18]} 19. Rc1 {[%emt 0:01:23]} Rc8 {[%emt 0:06:34]} 20. Nc5 {[%emt 0:11:09]} (20. a3 $16) 20... Nxc5 $11 {[%emt 0:02:12]} 21. Rxc5 {[%emt 0:00:03]} Qxb2 {[%emt 0:02:20]} 22. Qg4 {[%emt 0:00:32]} (22. h3 $14) 22... Qd2 $1 {[%emt 0:08:15]} (22... Bf8 23. Qxg5 Be7 24. Qf4 $14) 23. Qxg5 {[%emt 0:04:30][%mdl 8192] [#]} (23. Qf3 $11 f5 24. Rcc1) 23... Bxd4 $1 $19 {[%emt 0:00:20][%mdl 512]} 24. Rc3 {[%emt 0:04:01]} Bxc3 $2 {[%emt 0:10:12]} (24... Qxc3 $19 25. exd4 Qxd4+ 26. Bf2 Qb4) 25. Bd6 $11 {[%emt 0:00:22][%csl Gd6][%cal Rg5e7]} f6 {[%emt 0:02:03]} 26. Qg7 $40 {[%emt 0:01:12][%csl Gd6][%cal Rg7e7][%mdl 128] White attacks.} Qxe3+ {[%emt 0:00:20]} 27. Kh1 {[%emt 0:00:01][%csl Gd6][%cal Rg7e7] Dancing on a razor blade.} Rxh2+ $1 {[%emt 0:02:09]} 28. Bxh2 {[%emt 0:00:02] White wants to mate with Bd6.} Bb4 {[%emt 0:07:58][%mdl 8192] Prevents Bd6.} (28... Qg5 29. Qh8+ Kd7 30. Qh7+ Kd8 31. Bf4 $18) (28... Qd3 $11 {and Black stays safe.} 29. Qg8+ Ke7 30. Qg7+ Ke8 31. Qg8+ Ke7 32. Qg7+ Ke8) 29. Qb7 $18 {[%emt 0:01:24]} Rd8 {[%emt 0:02:58]} 30. Qxb4 {[%emt 0:00:44]} d4 $2 {[%emt 0:00:55]} (30... Qe4 31. Qb7 d4) 31. Rxf6 {[%emt 0:02:01] Threatening mate with Rf8+.} c5 {[%emt 0:00:18]} 32. Qc4 {[%emt 0:01:44]} ({Wrong is} 32. Qxc5 $2 Qe1+ 33. Bg1 Qh4+ 34. Bh2 Qxf6 $19) 32... Ke7 {[%emt 0:02:04]} 33. Rf3 {[%emt 0:00:25]} Qg5 {[%emt 0:01:19]} 34. Qxa6 {[%emt 0:01:09] Hoping for Rf1.} Rd7 {[%emt 0:03:02]} 35. Qf1 {[%emt 0:00:48]} (35. Kg1 $142 Qc1+ 36. Rf1 Qe3+ 37. Kh1) 35... Qg6 {[%emt 0:00:47]} 36. Qc1 {[%emt 0:01:21]} Rd5 {[%emt 0:00:12]} 37. Qf4 {[%emt 0:00:17] White threatens Qf8+ and mate.} Rf5 {[%emt 0:03:21] Against Qf8+} 38. Qc7+ {[%emt 0:00:25]} Ke8 {[%emt 0:00:23]} 39. Qc6+ {[%emt 0:01:07]} Kf7 {[%emt 0:00:16]} 40. Qc7+ {[%emt 0:00:00]} (40. Qd7+ $18 Kg8 41. Qd8+ Kh7 42. Rh3+ Rh5 43. Qc7+ Kg8 44. Rg3 Qxg3 45. Qxg3+ Kh7 46. Qc7+ Kg6 47. Kg1) 40... Ke8 $1 {[%emt 0:00:00]} 41. Rb3 {[%emt 0:09:07][%cal Rb3b8]} Rf1+ {[%emt 0:03:38]} 42. Bg1 {[%emt 0:00:35] Weighted Error Value: White=0.39/Black=0.94} 1-0

[Event "AUT Bundesliga 2021-22"]
[Site "Graz"]
[Date "2022.04.23"]
[Round "11.31"]
[White "Horvath, Dominik"]
[Black "Ragger, Markus"]
[Result "1-0"]
[ECO "D45"]
[WhiteElo "2483"]
[BlackElo "2643"]
[Annotator "TA"]
[PlyCount "61"]
[EventDate "2021.01.17"]
[EventType "team-tourn"]
[EventCountry "AUT"]
[SourceTitle "playchess.com"]
[Source "ChessBase"]
[SourceQuality "1"]
[TimeControl "40/5400+30:1800+30"]

{[%evp 21,61,29,42,17,18,16,20,8,17,29,58,62,145,27,43,50,97,82,98,90,71,10,137,133,129,137,131,125,126,130,253,265,338,341,1030,998,29988,29989,29989,954,29990,12020]} 1. Nf3 {[%emt 0:00:01]} d5 {[%emt 0:00:13]} 2. d4 {[%emt 0:00:16]} Nf6 {[%emt 0:00:06]} 3. c4 {[%emt 0:00:09]} c6 {[%emt 0:00:03]} 4. Nc3 {[%emt 0:03:18]} e6 {[%emt 0:00:08]} 5. e3 {[%emt 0:06:49]} Nbd7 {[%emt 0:00:13]} 6. Qc2 {[%emt 0:00:10]} Bd6 {[%emt 0:00:07]} 7. Bd3 {[%emt 0:00:05]} O-O {[%emt 0:00:10]} 8. O-O {[%emt 0:00:04]} dxc4 {[%emt 0:00:09]} 9. Bxc4 {[%emt 0:00:04]} b5 {[%emt 0:00:04]} 10. Be2 {[%emt 0:00:04]} Bb7 {[%emt 0:00:08]} 11. e4 {[%emt 0:00:05]} e5 {[%emt 0:00:08]} 12. dxe5 {[%emt 0:00:10] D46: Semi-Slav: 5 e3 Nbd7 6 Bd3, Black avoids the Meran.} (12. Rd1 $5 {[%cal Rd4e5]} Qc7 13. g3 $11) 12... Nxe5 {[%emt 0:00:03]} 13. Nd4 {[%emt 0:00:21]} Neg4 {[%emt 0:00:43]} 14. g3 $1 {[%emt 0:00:06] The position is equal.} Bc5 {[%emt 0:04:38]} 15. Nf5 {[%emt 0:00:15][%cal Oe4e5]} Qb6 {[%emt 0:03:06][%cal Rg4f2]} 16. Kg2 {[%emt 0:09:49]} Nxf2 {[%emt 0:14:00]} (16... Bc8 $14) 17. e5 {[%emt 0:25:52]} ({White should try} 17. b4 $1 $16 {[%cal Rb4c5]} Bxb4 18. Be3) 17... Nd7 {[%emt 0:24:59]} 18. Bf4 $36 {[%emt 0:18:03][%cal Ob2b4][%mdl 2048] White is pushing.} Rfe8 {[%emt 0:05:11]} (18... Rae8 $14) 19. b4 $1 $16 {[%emt 0:04:49]} Bxb4 {[%emt 0:04:44]} 20. Rxf2 {[%emt 0:00:06] Hoping for Rd1.} Nxe5 {[%emt 0:00:33] [#] Strongly threatening ...c5+.} 21. Kf1 $146 {[%emt 0:09:08]} ({White should play} 21. Ne4 $1 $16 {[%cal Of5h6] Threatens to win with Nh6+!} c5 22. Kf1) ({Predecessor:} 21. Ne4 c5 22. Kf1 Bxe4 23. Qxe4 Ng6 24. Qd5 Nxf4 25. Ne7+ Kh8 26. Rxf4 c4 27. Nc6 {1-0 (75) Giri,A (2768)-Shirov,A (2691) Hoogeveen 2014}) 21... c5 {[%emt 0:12:14]} (21... Bc8 $11 {keeps the balance.} 22. Rc1 Ba3) 22. Rd1 $1 {[%emt 0:02:35][%cal Ba1d1,Bd1d5,Bd5d7][%mdl 32] aiming for Rd6.} c4 {[%emt 0:03:29] White must now prevent ...Bc5.} 23. Nd5 {[%emt 0:04:56] Active counter play!} Bxd5 {[%emt 0:00:48]} 24. Rxd5 {[%emt 0:00:03] Chess con chili.} Qc6 {[%emt 0:00:10]} 25. Qd1 {[%emt 0:01:23]} ({Of course not} 25. Ne3 $6 Bc5 $1 26. Bxe5 Bxe3 $11) 25... Ng6 {[%emt 0:13:04] [#]} (25... Rad8 $16 26. Bf3 Qf6) 26. Qd4 $1 $18 {[%emt 0:01:02][%csl Gf5][%cal Rd4g7]} f6 {[%emt 0:01:17]} 27. Bf3 {[%emt 0:00:54]} Bf8 $2 {[%emt 0:03:41]} (27... Qb6 28. Qxb6 axb6 29. Rxb5 Nxf4 30. gxf4 (30. Rxb4 Nd3 $18) 30... Ra5) 28. Rd7 {[%emt 0:00:57]} Qc8 {[%emt 0:00:39] [#]} 29. Nh6+ $1 {[%emt 0:01:02][%mdl 512]} Kh8 {[%emt 0:00:16]} 30. Nf7+ {[%emt 0:00:03]} Kg8 {[%emt 0:00:05]} 31. Qd5 {[%emt 0:00:24] Weighted Error Value: White=0.12 (very precise) /Black=0.64} 1-0